[Event "*** Titled Tuesday Blitz"]
[Site "Chess.com"]
[Date "2020.04.14"]
[Round "2"]
[White "RiskyDecision"]
[Black "GigaQuparadze"]
[Result "0-1"]
[WhiteElo "2605"]
[BlackElo "2921"]
[TimeControl "180+1"]
[EndTime "10:16:31 PDT"]
[Termination "GigaQuparadze won on time"]

1. d4 {[%clk 0:03:00.9]} 1... Nf6 {[%clk 0:02:59.5]} 2. c4 {[%clk 0:03:00.8]}
2... e6 {[%clk 0:02:59.3]} 3. g3 {[%clk 0:03:00.9]} 3... d5 {[%clk 0:02:58.1]}
4. Nf3 {[%clk 0:03:01.2]} 4... Bb4+ {[%clk 0:02:57.5]} 5. Bd2 {[%clk 0:03:00.8]}
5... a5 {[%clk 0:02:57.3]} 6. Bg2 {[%clk 0:03:00]} 6... O-O {[%clk 0:02:56.7]}
7. O-O {[%clk 0:02:59.5]} 7... c6 {[%clk 0:02:56.3]} 8. Qc2 {[%clk 0:02:57.3]}
8... b6 {[%clk 0:02:54.8]} 9. Bg5 {[%clk 0:02:51.4]} 9... Be7 {[%clk 0:02:54.1]}
10. Nbd2 {[%clk 0:02:46.5]} 10... Ba6 {[%clk 0:02:52.8]} 11. Rfd1 {[%clk
0:02:42]} 11... Nbd7 {[%clk 0:02:52.2]} 12. Rac1 {[%clk 0:02:31.9]} 12... Rc8
{[%clk 0:02:51.6]} 13. e4 {[%clk 0:02:28.9]} 13... h6 {[%clk 0:02:42.8]} 14. Bf4
{[%clk 0:02:18.8]} 14... dxc4 {[%clk 0:02:41.5]} 15. Nxc4 {[%clk 0:01:52.2]}
15... Bxc4 {[%clk 0:02:40.8]} 16. Qxc4 {[%clk 0:01:53.1]} 16... Nxe4 {[%clk
0:02:41.1]} 17. Ne5 {[%clk 0:01:50.8]} 17... Nd6 {[%clk 0:02:34.6]} 18. Qe2
{[%clk 0:01:38.8]} 18... Nb8 {[%clk 0:02:30.6]} 19. Nxc6 {[%clk 0:01:34.2]}
19... Nxc6 {[%clk 0:02:30.4]} 20. Bxc6 {[%clk 0:01:30.7]} 20... Bg5 {[%clk
0:02:30.2]} 21. Bxg5 {[%clk 0:01:19]} 21... Qxg5 {[%clk 0:02:31.1]} 22. Qe3
{[%clk 0:01:14.8]} 22... Qf6 {[%clk 0:02:24.6]} 23. Be4 {[%clk 0:01:01]} 23...
Rfd8 {[%clk 0:02:08.9]} 24. Bb1 {[%clk 0:00:38.4]} 24... b5 {[%clk 0:01:56.2]}
25. Rxc8 {[%clk 0:00:34.7]} 25... Rxc8 {[%clk 0:01:56.7]} 26. Qe5 {[%clk
0:00:17.7]} 26... Qxe5 {[%clk 0:01:54.6]} 27. dxe5 {[%clk 0:00:18.6]} 27... Nc4
{[%clk 0:01:54.8]} 28. Rc1 {[%clk 0:00:14.5]} 28... Rd8 {[%clk 0:01:54.4]} 29.
a4 {[%clk 0:00:11.1]} 29... Nxe5 {[%clk 0:01:50.2]} 30. axb5 {[%clk 0:00:11.2]}
30... Rb8 {[%clk 0:01:50.7]} 31. Rc5 {[%clk 0:00:09.7]} 31... f6 {[%clk
0:01:48.2]} 32. f4 {[%clk 0:00:09.3]} 32... Nf3+ {[%clk 0:01:46.9]} 33. Kf2
{[%clk 0:00:08.6]} 33... Nd4 {[%clk 0:01:47.8]} 34. Ba2 {[%clk 0:00:06.6]} 34...
Kf8 {[%clk 0:01:47.1]} 35. Ke3 {[%clk 0:00:04.7]} 35... Nxb5 {[%clk 0:01:46.9]}
36. Bxe6 {[%clk 0:00:04.2]} 36... Nd6 {[%clk 0:01:47.1]} 37. f5 {[%clk
0:00:03.1]} 37... Rxb2 {[%clk 0:01:44.3]} 38. Rxa5 {[%clk 0:00:03]} 38... Rb8
{[%clk 0:01:37.2]} 39. Ra7 {[%clk 0:00:02.9]} 39... Re8 {[%clk 0:01:36.7]} 40.
Kf4 {[%clk 0:00:02.4]} 40... Rb8 {[%clk 0:01:36.1]} 41. Rd7 {[%clk 0:00:01.7]}
41... Rb4+ {[%clk 0:01:36.1]} 42. Kf3 {[%clk 0:00:01.7]} 42... Ne4 {[%clk
0:01:35.8]} 43. g4 {[%clk 0:00:02.3]} 43... Ng5+ {[%clk 0:01:35.4]} 0-1

[Event "*** Titled Tuesday Blitz"]
[Site "Chess.com"]
[Date "2020.04.14"]
[Round "2"]
[White "kintoho"]
[Black "JonahWillow"]
[Result "1-0"]
[WhiteElo "2429"]
[BlackElo "2756"]
[TimeControl "180+1"]
[EndTime "10:16:31 PDT"]
[Termination "kintoho won by resignation"]

1. e4 {[%clk 0:02:49.8]} 1... c5 {[%clk 0:02:59.1]} 2. Nf3 {[%clk 0:02:49.8]}
2... Nc6 {[%clk 0:02:58.5]} 3. c3 {[%clk 0:02:49.3]} 3... Nf6 {[%clk 0:02:57.6]}
4. e5 {[%clk 0:02:49.4]} 4... Nd5 {[%clk 0:02:58.1]} 5. d4 {[%clk 0:02:49.7]}
5... cxd4 {[%clk 0:02:59]} 6. cxd4 {[%clk 0:02:49.9]} 6... g6 {[%clk 0:02:59.2]}
7. Nc3 {[%clk 0:02:48.8]} 7... Nxc3 {[%clk 0:02:59.3]} 8. bxc3 {[%clk 0:02:49]}
8... Bg7 {[%clk 0:03:00.2]} 9. g3 {[%clk 0:02:48.1]} 9... O-O {[%clk 0:03:00.5]}
10. Bg2 {[%clk 0:02:48.4]} 10... d6 {[%clk 0:03:01.4]} 11. exd6 {[%clk
0:02:48.3]} 11... Qxd6 {[%clk 0:03:02.3]} 12. O-O {[%clk 0:02:48.4]} 12... Rd8
{[%clk 0:02:59.6]} 13. a4 {[%clk 0:02:47.8]} 13... Bg4 {[%clk 0:02:59.5]} 14.
Ba3 {[%clk 0:02:45.9]} 14... Qd7 {[%clk 0:02:59.1]} 15. Re1 {[%clk 0:02:43.8]}
15... Rac8 {[%clk 0:02:55.9]} 16. Qd3 {[%clk 0:02:40.5]} 16... Bxf3 {[%clk
0:02:54.5]} 17. Qxf3 {[%clk 0:02:39.5]} 17... e6 {[%clk 0:02:50]} 18. Rad1
{[%clk 0:02:32.8]} 18... Na5 {[%clk 0:02:48]} 19. Bb4 {[%clk 0:02:31.9]} 19...
Nc6 {[%clk 0:02:44.5]} 20. Ba3 {[%clk 0:02:30.3]} 20... b6 {[%clk 0:02:37.8]}
21. d5 {[%clk 0:02:25.2]} 21... exd5 {[%clk 0:02:18.3]} 22. Rxd5 {[%clk
0:02:24.3]} 22... Qxd5 {[%clk 0:01:37.1]} 23. Qxd5 {[%clk 0:02:23]} 23... Rxd5
{[%clk 0:01:38]} 24. Bxd5 {[%clk 0:02:23]} 24... Bxc3 {[%clk 0:01:06.7]} 25. Rc1
{[%clk 0:02:21.7]} 25... Nd4 {[%clk 0:01:07]} 26. Kf1 {[%clk 0:02:14.1]} 26...
Rd8 {[%clk 0:00:57.2]} 27. Rxc3 {[%clk 0:02:09.6]} 27... Rxd5 {[%clk 0:00:54.7]}
28. Rc8+ {[%clk 0:02:08.7]} 28... Kg7 {[%clk 0:00:55]} 29. Bb2 {[%clk
0:02:08.8]} 29... Kf6 {[%clk 0:00:54.9]} 30. Rc4 {[%clk 0:02:03]} 30... Ke5
{[%clk 0:00:53.7]} 31. f3 {[%clk 0:02:00.8]} 31... Rd6 {[%clk 0:00:43.2]} 32.
Kf2 {[%clk 0:01:56]} 32... Ke6 {[%clk 0:00:35.6]} 33. Rxd4 {[%clk 0:01:49.3]}
33... Rxd4 {[%clk 0:00:34.1]} 34. Bxd4 {[%clk 0:01:49.1]} 34... Kd5 {[%clk
0:00:35]} 35. Ke3 {[%clk 0:01:48.6]} 35... Kc4 {[%clk 0:00:35.5]} 36. a5 {[%clk
0:01:47.1]} 36... bxa5 {[%clk 0:00:33.6]} 37. Bxa7 {[%clk 0:01:47.1]} 37... a4
{[%clk 0:00:33.5]} 38. Bb8 {[%clk 0:01:47.2]} 38... a3 {[%clk 0:00:25.5]} 39.
Be5 {[%clk 0:01:46.6]} 39... Kb3 {[%clk 0:00:23.2]} 40. Ke4 {[%clk 0:01:44.8]}
40... Kc2 {[%clk 0:00:23.2]} 41. f4 {[%clk 0:01:41.5]} 41... Kd2 {[%clk
0:00:21.9]} 42. g4 {[%clk 0:01:41.7]} 42... h6 {[%clk 0:00:19.5]} 43. f5 {[%clk
0:01:41.2]} 43... a2 {[%clk 0:00:17.5]} 44. f6 {[%clk 0:01:37.4]} 44... Ke2
{[%clk 0:00:16.5]} 45. Kd5 {[%clk 0:01:37.3]} 45... Kf3 {[%clk 0:00:17]} 46. h3
{[%clk 0:01:34.3]} 46... Kg2 {[%clk 0:00:15.4]} 47. Kd6 {[%clk 0:01:32.5]} 47...
Kxh3 {[%clk 0:00:15.6]} 48. Ke7 {[%clk 0:01:32.8]} 48... Kxg4 {[%clk 0:00:15.6]}
49. Kxf7 {[%clk 0:01:32.9]} 49... Kf5 {[%clk 0:00:14.9]} 50. Bb2 {[%clk
0:01:30.2]} 1-0

[Event "*** Titled Tuesday Blitz"]
[Site "Chess.com"]
[Date "2020.04.14"]
[Round "2"]
[White "YaWaleriy"]
[Black "RubensCezila"]
[Result "0-1"]
[WhiteElo "2195"]
[BlackElo "2460"]
[TimeControl "180+1"]
[EndTime "10:16:31 PDT"]
[Termination "RubensCezila won by resignation"]

1. d4 {[%clk 0:03:00.9]} 1... Nf6 {[%clk 0:02:59.6]} 2. c4 {[%clk 0:03:00.6]}
2... g6 {[%clk 0:02:57.7]} 3. Nc3 {[%clk 0:03:00.5]} 3... Bg7 {[%clk 0:02:58.2]}
4. e4 {[%clk 0:03:00]} 4... d6 {[%clk 0:02:58.5]} 5. Nf3 {[%clk 0:03:00]} 5...
O-O {[%clk 0:02:58.4]} 6. Be2 {[%clk 0:03:00.5]} 6... Na6 {[%clk 0:02:58.1]} 7.
Be3 {[%clk 0:02:59.2]} 7... c5 {[%clk 0:02:50.6]} 8. O-O {[%clk 0:02:56.2]} 8...
cxd4 {[%clk 0:02:47.4]} 9. Nxd4 {[%clk 0:02:55.6]} 9... Nc5 {[%clk 0:02:47.5]}
10. f3 {[%clk 0:02:54.8]} 10... a5 {[%clk 0:02:47.4]} 11. Rc1 {[%clk 0:02:53.3]}
11... Bd7 {[%clk 0:02:36.6]} 12. Qd2 {[%clk 0:02:53.2]} 12... Rc8 {[%clk
0:02:33.8]} 13. Rfd1 {[%clk 0:02:52.3]} 13... a4 {[%clk 0:02:10.6]} 14. Bf1
{[%clk 0:02:46.4]} 14... Re8 {[%clk 0:01:58.6]} 15. Kh1 {[%clk 0:02:32]} 15...
Qa5 {[%clk 0:01:52]} 16. Nd5 {[%clk 0:02:20.3]} 16... Qxd2 {[%clk 0:01:51.1]}
17. Rxd2 {[%clk 0:02:20.8]} 17... Nxd5 {[%clk 0:01:44.7]} 18. cxd5 {[%clk
0:02:20.5]} 18... Na6 {[%clk 0:01:34.4]} 19. Rxc8 {[%clk 0:02:09.1]} 19... Rxc8
{[%clk 0:01:32.7]} 20. Rd1 {[%clk 0:02:01]} 20... Nb4 {[%clk 0:01:27.8]} 21. a3
{[%clk 0:01:59.4]} 21... Nc2 {[%clk 0:01:28]} 22. Nxc2 {[%clk 0:01:50.3]} 22...
Rxc2 {[%clk 0:01:28.9]} 23. Rc1 {[%clk 0:01:49.3]} 23... Rxb2 {[%clk 0:01:02]}
24. h4 {[%clk 0:01:35.4]} 24... Rb3 {[%clk 0:00:56]} 25. Rc7 {[%clk 0:01:28.9]}
25... Rxe3 {[%clk 0:00:34.9]} 26. Rxd7 {[%clk 0:01:28.6]} 26... Bd4 {[%clk
0:00:35.5]} 27. Bb5 {[%clk 0:01:22.2]} 27... Rxa3 {[%clk 0:00:35.2]} 28. Rxb7
{[%clk 0:01:21.6]} 28... Be5 {[%clk 0:00:31]} 29. Kg1 {[%clk 0:01:13.8]} 29...
Bg3 {[%clk 0:00:29.9]} 30. Rxe7 {[%clk 0:01:11.1]} 30... Ra1+ {[%clk 0:00:27.8]}
31. Bf1 {[%clk 0:01:10.8]} 31... a3 {[%clk 0:00:26.9]} 32. Ra7 {[%clk
0:01:09.3]} 32... a2 {[%clk 0:00:23]} 33. Ra6 {[%clk 0:01:01.5]} 33... Be5
{[%clk 0:00:20.8]} 34. g4 {[%clk 0:00:58.7]} 34... Rxf1+ {[%clk 0:00:20.2]} 35.
Kxf1 {[%clk 0:00:58.6]} 35... a1=Q+ {[%clk 0:00:21.1]} 36. Rxa1 {[%clk
0:00:58.4]} 36... Bxa1 {[%clk 0:00:22]} 0-1

[Event "*** Titled Tuesday Blitz"]
[Site "Chess.com"]
[Date "2020.04.14"]
[Round "2"]
[White "DIM90"]
[Black "ENEASZ"]
[Result "0-1"]
[WhiteElo "2251"]
[BlackElo "2502"]
[TimeControl "180+1"]
[EndTime "10:16:33 PDT"]
[Termination "ENEASZ won by resignation"]

1. e4 {[%clk 0:03:00.9]} 1... d6 {[%clk 0:02:59.5]} 2. d4 {[%clk 0:03:00.5]}
2... Nf6 {[%clk 0:02:59.6]} 3. Nc3 {[%clk 0:03:01]} 3... e5 {[%clk 0:02:59.8]}
4. dxe5 {[%clk 0:03:00]} 4... dxe5 {[%clk 0:03:00.7]} 5. Bg5 {[%clk 0:02:59.8]}
5... Be6 {[%clk 0:02:59.1]} 6. Qxd8+ {[%clk 0:02:57.3]} 6... Kxd8 {[%clk
0:03:00]} 7. O-O-O+ {[%clk 0:02:56.9]} 7... Nd7 {[%clk 0:02:59.9]} 8. f4 {[%clk
0:02:54.9]} 8... exf4 {[%clk 0:02:56.7]} 9. e5 {[%clk 0:02:54.7]} 9... h6 {[%clk
0:02:56]} 10. Bxf4 {[%clk 0:02:54.6]} 10... Ng4 {[%clk 0:02:56.3]} 11. Nh3
{[%clk 0:02:41.8]} 11... Kc8 {[%clk 0:02:53.9]} 12. Bb5 {[%clk 0:02:25.8]} 12...
Ngxe5 {[%clk 0:02:31]} 13. Bxe5 {[%clk 0:02:24.9]} 13... Nxe5 {[%clk 0:02:30.6]}
14. Nf4 {[%clk 0:02:23.8]} 14... Bd6 {[%clk 0:02:00.2]} 15. Nxe6 {[%clk
0:02:22]} 15... fxe6 {[%clk 0:02:01.1]} 16. Rhe1 {[%clk 0:01:59.5]} 16... Rd8
{[%clk 0:01:44.7]} 17. Ba4 {[%clk 0:01:59.2]} 17... Ng6 {[%clk 0:01:20.2]} 18.
Rxe6 {[%clk 0:01:54.3]} 18... Nf4 {[%clk 0:01:20.2]} 19. Re4 {[%clk 0:01:24.2]}
19... Nxg2 {[%clk 0:01:20]} 20. Bb3 {[%clk 0:01:18]} 20... g5 {[%clk 0:01:11.9]}
21. Be6+ {[%clk 0:01:15.7]} 21... Kb8 {[%clk 0:01:12]} 22. Rd3 {[%clk
0:00:52.3]} 22... Nf4 {[%clk 0:01:08.8]} 23. Rf3 {[%clk 0:00:48.5]} 23... c6
{[%clk 0:01:03.6]} 24. h4 {[%clk 0:00:43.9]} 24... Kc7 {[%clk 0:01:00.9]} 25.
hxg5 {[%clk 0:00:43]} 25... hxg5 {[%clk 0:01:01.8]} 26. Rc4 {[%clk 0:00:38.3]}
26... Nxe6 {[%clk 0:01:00.1]} 27. Rf7+ {[%clk 0:00:33.7]} 27... Kb6 {[%clk
0:00:46.4]} 28. b4 {[%clk 0:00:28.7]} 28... Rf8 {[%clk 0:00:40.3]} 29. Rd7
{[%clk 0:00:27.6]} 29... Rad8 {[%clk 0:00:38.3]} 30. Na4+ {[%clk 0:00:26.7]}
30... Kb5 {[%clk 0:00:36.2]} 31. Rxb7+ {[%clk 0:00:22.6]} 31... Kxc4 {[%clk
0:00:34.9]} 0-1

[Event "*** Titled Tuesday Blitz"]
[Site "Chess.com"]
[Date "2020.04.14"]
[Round "2"]
[White "Jenia84"]
[Black "Ar4uha"]
[Result "1/2-1/2"]
[WhiteElo "2319"]
[BlackElo "2633"]
[TimeControl "180+1"]
[EndTime "10:16:35 PDT"]
[Termination "Game drawn by agreement"]

1. e4 {[%clk 0:03:00.9]} 1... e6 {[%clk 0:02:50.3]} 2. d4 {[%clk 0:02:59.8]}
2... d5 {[%clk 0:02:51.2]} 3. Bd3 {[%clk 0:02:52.9]} 3... dxe4 {[%clk
0:02:50.1]} 4. Bxe4 {[%clk 0:02:52.9]} 4... Nf6 {[%clk 0:02:51]} 5. Bf3 {[%clk
0:02:52.7]} 5... Nbd7 {[%clk 0:02:51.9]} 6. Ne2 {[%clk 0:02:51.6]} 6... e5
{[%clk 0:02:50.5]} 7. dxe5 {[%clk 0:02:50.8]} 7... Nxe5 {[%clk 0:02:51.4]} 8.
Qxd8+ {[%clk 0:02:50.6]} 8... Kxd8 {[%clk 0:02:52.3]} 9. Nbc3 {[%clk 0:02:40.7]}
9... Nxf3+ {[%clk 0:02:49.9]} 10. gxf3 {[%clk 0:02:40.9]} 10... a6 {[%clk
0:02:48.9]} 11. Bg5 {[%clk 0:02:40.3]} 11... Bd6 {[%clk 0:02:48.2]} 12. O-O-O
{[%clk 0:02:38.7]} 12... Bd7 {[%clk 0:02:46.6]} 13. Ne4 {[%clk 0:02:37.8]} 13...
Be7 {[%clk 0:02:43]} 14. Nxf6 {[%clk 0:02:30.6]} 14... gxf6 {[%clk 0:02:34.3]}
15. Bf4 {[%clk 0:02:30.5]} 15... Kc8 {[%clk 0:02:34]} 16. Nc3 {[%clk 0:02:30]}
16... Be6 {[%clk 0:02:21.4]} 17. Nd5 {[%clk 0:02:25.4]} 17... Bd8 {[%clk
0:02:19]} 18. Rhe1 {[%clk 0:02:22]} 18... a5 {[%clk 0:02:18.9]} 19. Be3 {[%clk
0:02:17.3]} 19... Rg8 {[%clk 0:02:12.1]} 20. a3 {[%clk 0:02:15]} 20... b6 {[%clk
0:02:11.6]} 21. Nf4 {[%clk 0:02:10.8]} 21... Bf5 {[%clk 0:02:04.3]} 22. Bd4
{[%clk 0:02:09.4]} 22... Kb7 {[%clk 0:01:56.2]} 23. Nh5 {[%clk 0:02:01.2]} 23...
Be6 {[%clk 0:01:45.1]} 24. Rg1 {[%clk 0:01:48.1]} 24... Be7 {[%clk 0:01:23.3]}
25. Nxf6 {[%clk 0:01:45.9]} 25... Bxf6 {[%clk 0:01:22.7]} 26. Bxf6 {[%clk
0:01:45.7]} 26... Rg6 {[%clk 0:01:20]} 27. Be5 {[%clk 0:01:43.1]} 27... Rag8
{[%clk 0:01:18.1]} 28. Rxg6 {[%clk 0:01:29.8]} 28... Rxg6 {[%clk 0:01:19]} 29.
Bg3 {[%clk 0:01:28.6]} 29... Rf6 {[%clk 0:01:19.4]} 30. Rd3 {[%clk 0:01:27.8]}
30... Rf5 {[%clk 0:01:16.1]} 31. Kd2 {[%clk 0:01:27]} 31... c5 {[%clk
0:01:16.4]} 32. Ke3 {[%clk 0:01:25.4]} 32... a4 {[%clk 0:01:15.9]} 33. Rd8
{[%clk 0:01:24.6]} 33... Kc6 {[%clk 0:01:14.3]} 34. Rh8 {[%clk 0:01:23.9]} 34...
Rh5 {[%clk 0:01:14.1]} 35. h4 {[%clk 0:01:22.4]} 35... Kb5 {[%clk 0:01:13.1]}
36. Rb8 {[%clk 0:01:13.7]} 36... Rd5 {[%clk 0:01:06.3]} 37. Bc7 {[%clk
0:01:11.1]} 37... Kc4 {[%clk 0:01:02]} 38. Rxb6 {[%clk 0:01:09.5]} 38... Rd1
{[%clk 0:00:57.8]} 39. b3+ {[%clk 0:01:06.2]} 39... axb3 {[%clk 0:00:54.2]} 40.
cxb3+ {[%clk 0:01:06.1]} 40... Kc3 {[%clk 0:00:54.8]} 41. Be5+ {[%clk
0:01:04.8]} 41... Kc2 {[%clk 0:00:54.9]} 42. b4 {[%clk 0:01:04]} 42... cxb4
{[%clk 0:00:55]} 43. axb4 {[%clk 0:01:01.6]} 43... Kb3 {[%clk 0:00:53.8]} 44.
Rd6 {[%clk 0:00:45.6]} 44... Re1+ {[%clk 0:00:48.8]} 45. Kf4 {[%clk 0:00:45.6]}
45... Kxb4 {[%clk 0:00:48.3]} 46. Rd8 {[%clk 0:00:44.2]} 1/2-1/2

[Event "*** Titled Tuesday Blitz"]
[Site "Chess.com"]
[Date "2020.04.14"]
[Round "2"]
[White "Jbd735"]
[Black "SPEEDSKATER"]
[Result "0-1"]
[WhiteElo "2442"]
[BlackElo "2825"]
[TimeControl "180+1"]
[EndTime "10:16:36 PDT"]
[Termination "SPEEDSKATER won by checkmate"]

1. e4 {[%clk 0:03:00.9]} 1... e6 {[%clk 0:02:58.1]} 2. d4 {[%clk 0:03:00.8]}
2... d5 {[%clk 0:02:58.2]} 3. Nd2 {[%clk 0:03:00.9]} 3... c5 {[%clk 0:02:57.6]}
4. Ngf3 {[%clk 0:02:59.5]} 4... cxd4 {[%clk 0:02:57.5]} 5. Nxd4 {[%clk
0:02:56.8]} 5... Nf6 {[%clk 0:02:57]} 6. exd5 {[%clk 0:02:53.9]} 6... a6 {[%clk
0:02:56.3]} 7. N2f3 {[%clk 0:02:46.3]} 7... Qxd5 {[%clk 0:02:55.6]} 8. Be2
{[%clk 0:02:40.3]} 8... Nc6 {[%clk 0:02:54.7]} 9. O-O {[%clk 0:02:37.2]} 9...
Bd7 {[%clk 0:02:44.1]} 10. c4 {[%clk 0:02:32]} 10... Qa5 {[%clk 0:02:41.5]} 11.
Be3 {[%clk 0:02:20.2]} 11... Rd8 {[%clk 0:02:40.5]} 12. Qb3 {[%clk 0:02:10.2]}
12... Qc7 {[%clk 0:02:40.1]} 13. Nxc6 {[%clk 0:02:08.2]} 13... Bxc6 {[%clk
0:02:39.6]} 14. Bb6 {[%clk 0:02:07.3]} 14... Qb8 {[%clk 0:02:35.6]} 15. Bxd8
{[%clk 0:02:07]} 15... Qxd8 {[%clk 0:02:36.5]} 16. Ne5 {[%clk 0:01:57]} 16...
Qc7 {[%clk 0:02:35.9]} 17. Nxc6 {[%clk 0:01:56.8]} 17... bxc6 {[%clk 0:02:36.8]}
18. Qa4 {[%clk 0:01:51.1]} 18... Bd6 {[%clk 0:02:36.2]} 19. Bf3 {[%clk
0:01:42.9]} 19... O-O {[%clk 0:02:27.3]} 20. g3 {[%clk 0:01:37.8]} 20... c5
{[%clk 0:02:26.3]} 21. Qxa6 {[%clk 0:01:36.2]} 21... Be5 {[%clk 0:02:26.3]} 22.
Rab1 {[%clk 0:01:34.6]} 22... Bd4 {[%clk 0:02:25.4]} 23. b4 {[%clk 0:01:31.8]}
23... e5 {[%clk 0:02:25.4]} 24. b5 {[%clk 0:01:26.1]} 24... e4 {[%clk
0:02:25.5]} 25. b6 {[%clk 0:01:22.8]} 25... Qe5 {[%clk 0:02:24]} 26. Bg2 {[%clk
0:01:21.7]} 26... Ng4 {[%clk 0:02:23.3]} 27. b7 {[%clk 0:01:12]} 27... e3 {[%clk
0:02:23.1]} 28. Bd5 {[%clk 0:00:40.9]} 28... Qh5 {[%clk 0:01:56.8]} 29. h4
{[%clk 0:00:32.4]} 29... exf2+ {[%clk 0:01:49.9]} 30. Kh1 {[%clk 0:00:29.5]}
30... Qe5 {[%clk 0:01:48.6]} 31. Qa8 {[%clk 0:00:10]} 31... Rb8 {[%clk
0:01:44.1]} 32. Rb3 {[%clk 0:00:10.1]} 32... g6 {[%clk 0:01:39.3]} 33. a4 {[%clk
0:00:09.9]} 33... Ne3 {[%clk 0:01:21.4]} 34. Rxe3 {[%clk 0:00:08.8]} 34... Bxe3
{[%clk 0:01:20.7]} 35. Kg2 {[%clk 0:00:08.6]} 35... Bd2 {[%clk 0:01:14.4]} 36.
a5 {[%clk 0:00:06.9]} 36... Kg7 {[%clk 0:01:10.1]} 37. a6 {[%clk 0:00:06.9]}
37... Ba5 {[%clk 0:01:09.8]} 38. a7 {[%clk 0:00:06.8]} 38... Bc7 {[%clk
0:01:09.8]} 39. axb8=Q {[%clk 0:00:07]} 39... Qxg3+ {[%clk 0:01:09.3]} 40. Kh1
{[%clk 0:00:06.2]} 40... Qh2# {[%clk 0:01:09.9]} 0-1

[Event "*** Titled Tuesday Blitz"]
[Site "Chess.com"]
[Date "2020.04.14"]
[Round "2"]
[White "Alexander_Donchenko"]
[Black "velemajstor767276"]
[Result "1-0"]
[WhiteElo "2866"]
[BlackElo "2581"]
[TimeControl "180+1"]
[EndTime "10:16:37 PDT"]
[Termination "Alexander_Donchenko won on time"]

1. Nf3 {[%clk 0:03:00.9]} 1... Nf6 {[%clk 0:02:58.6]} 2. c4 {[%clk 0:03:00.6]}
2... e6 {[%clk 0:02:57.4]} 3. g3 {[%clk 0:03:01]} 3... b6 {[%clk 0:02:57.4]} 4.
Bg2 {[%clk 0:03:01.9]} 4... Bb7 {[%clk 0:02:57.9]} 5. O-O {[%clk 0:03:02.4]}
5... Be7 {[%clk 0:02:57.9]} 6. d4 {[%clk 0:03:02.5]} 6... O-O {[%clk 0:02:55.6]}
7. Re1 {[%clk 0:03:03]} 7... a5 {[%clk 0:02:34.5]} 8. Nc3 {[%clk 0:03:02.1]}
8... Ne4 {[%clk 0:02:32.9]} 9. Nb5 {[%clk 0:03:02]} 9... Qc8 {[%clk 0:02:16.4]}
10. Bf4 {[%clk 0:03:00]} 10... d6 {[%clk 0:02:13.8]} 11. Qc2 {[%clk 0:02:59.8]}
11... Nd7 {[%clk 0:01:54.9]} 12. d5 {[%clk 0:02:51.5]} 12... exd5 {[%clk
0:01:38.7]} 13. cxd5 {[%clk 0:02:51.2]} 13... Ndc5 {[%clk 0:01:38.9]} 14. Rad1
{[%clk 0:02:43.4]} 14... Re8 {[%clk 0:01:31.2]} 15. Nd2 {[%clk 0:02:19.7]} 15...
Nxd2 {[%clk 0:01:11.9]} 16. Bxd2 {[%clk 0:02:20.6]} 16... Bf6 {[%clk 0:01:10]}
17. Bc3 {[%clk 0:02:17.3]} 17... Bxc3 {[%clk 0:01:08]} 18. Qxc3 {[%clk
0:02:17.6]} 18... Qd7 {[%clk 0:01:06]} 19. Nd4 {[%clk 0:02:16.4]} 19... Re5
{[%clk 0:01:02.9]} 20. e4 {[%clk 0:02:10.6]} 20... Rae8 {[%clk 0:01:01.9]} 21.
f3 {[%clk 0:02:09.9]} 21... g6 {[%clk 0:00:54.5]} 22. Bf1 {[%clk 0:01:53]} 22...
Qe7 {[%clk 0:00:33.8]} 23. Bb5 {[%clk 0:01:51.8]} 23... Rf8 {[%clk 0:00:30.6]}
24. a3 {[%clk 0:01:36.8]} 24... a4 {[%clk 0:00:27.9]} 25. Qb4 {[%clk 0:01:21.8]}
25... Ra8 {[%clk 0:00:26.9]} 26. Bc6 {[%clk 0:01:18.2]} 26... Qf6 {[%clk
0:00:16.6]} 27. Bxb7 {[%clk 0:01:14.4]} 27... Nxb7 {[%clk 0:00:17.5]} 28. f4
{[%clk 0:01:10.2]} 28... Ree8 {[%clk 0:00:17.2]} 29. Nc6 {[%clk 0:01:08.9]}
29... Nc5 {[%clk 0:00:09.8]} 30. e5 {[%clk 0:01:08.9]} 30... dxe5 {[%clk
0:00:03.3]} 31. fxe5 {[%clk 0:01:09.8]} 31... Qg5 {[%clk 0:00:03.3]} 32. Qf4
{[%clk 0:01:07.1]} 32... Qh5 {[%clk 0:00:01.7]} 33. Rf1 {[%clk 0:01:03.4]} 33...
Qh6 {[%clk 0:00:01.4]} 34. Qxh6 {[%clk 0:01:02.5]} 1-0

[Event "*** Titled Tuesday Blitz"]
[Site "Chess.com"]
[Date "2020.04.14"]
[Round "2"]
[White "DrVelja"]
[Black "manuellarrea"]
[Result "1-0"]
[WhiteElo "2633"]
[BlackElo "2111"]
[TimeControl "180+1"]
[EndTime "10:16:38 PDT"]
[Termination "DrVelja won on time"]

1. e4 {[%clk 0:02:53.8]} 1... c5 {[%clk 0:02:57.2]} 2. Nf3 {[%clk 0:02:54.1]}
2... Nc6 {[%clk 0:02:55.2]} 3. d4 {[%clk 0:02:52.4]} 3... cxd4 {[%clk
0:02:54.8]} 4. Nxd4 {[%clk 0:02:53.3]} 4... Nf6 {[%clk 0:02:54.5]} 5. Nc3 {[%clk
0:02:53.7]} 5... d6 {[%clk 0:02:53.7]} 6. Bg5 {[%clk 0:02:53]} 6... e6 {[%clk
0:02:51.9]} 7. Qd2 {[%clk 0:02:53.4]} 7... Be7 {[%clk 0:02:51.6]} 8. O-O-O
{[%clk 0:02:52.4]} 8... O-O {[%clk 0:02:48.9]} 9. f3 {[%clk 0:02:50.5]} 9...
Nxd4 {[%clk 0:02:46.2]} 10. Qxd4 {[%clk 0:02:50.2]} 10... a6 {[%clk 0:02:46]}
11. Kb1 {[%clk 0:02:49.7]} 11... b5 {[%clk 0:02:45.4]} 12. Be3 {[%clk
0:02:44.1]} 12... Bb7 {[%clk 0:02:44.6]} 13. g4 {[%clk 0:02:42.6]} 13... Rc8
{[%clk 0:02:42.9]} 14. h4 {[%clk 0:02:41.2]} 14... Qc7 {[%clk 0:02:38.9]} 15. g5
{[%clk 0:02:33.5]} 15... Nd7 {[%clk 0:02:38]} 16. h5 {[%clk 0:02:32.1]} 16...
Ne5 {[%clk 0:02:37.3]} 17. h6 {[%clk 0:02:23.2]} 17... b4 {[%clk 0:01:52]} 18.
Qxb4 {[%clk 0:02:21.2]} 18... Nxf3 {[%clk 0:01:36.6]} 19. hxg7 {[%clk
0:02:19.7]} 19... Rfd8 {[%clk 0:01:23.1]} 20. Bb6 {[%clk 0:02:02.7]} 20... Qc6
{[%clk 0:01:17.3]} 21. Bxd8 {[%clk 0:02:02.6]} 21... Rxd8 {[%clk 0:01:12.1]} 22.
Bd3 {[%clk 0:01:29.5]} 22... Ne5 {[%clk 0:00:54.4]} 23. Qd4 {[%clk 0:01:20.6]}
23... Kxg7 {[%clk 0:00:46.8]} 24. Rh5 {[%clk 0:01:13.4]} 24... Rh8 {[%clk
0:00:44.6]} 25. Rdh1 {[%clk 0:01:12.9]} 25... Kg8 {[%clk 0:00:40.3]} 26. Qe3
{[%clk 0:01:07.1]} 26... Bf8 {[%clk 0:00:38.6]} 27. Qh3 {[%clk 0:01:05.3]} 27...
Bg7 {[%clk 0:00:35.7]} 28. Rxh7 {[%clk 0:00:55.6]} 28... Rxh7 {[%clk 0:00:35]}
29. Qxh7+ {[%clk 0:00:56.5]} 29... Kf8 {[%clk 0:00:34.3]} 30. Rf1 {[%clk
0:00:57]} 30... Nxd3 {[%clk 0:00:10.7]} 31. cxd3 {[%clk 0:00:55.9]} 1-0